fUSD/lending_fUSD_20260507
["ID","MTS","AMOUNT","RATE_DAILY","PERIOD"]
[421741796,1778088642000,-232.0,0.00020603,2]
[421741799,1778088642000,-1903.68171823,0.000209,2]
[421741795,1778088642000,-500.0,0.00020573,2]
[421741800,1778088642000,-207.86895535,0.00020949,2]
[421741742,1778088642000,-500.0,0.00020548,2]
[421741783,1778088642000,-151.0,0.00020548,2]
[421741779,1778088642000,-336.255181,0.00020548,2]
[421741792,1778088642000,-500.0,0.00020573,2]
[421741774,1778088642000,-500.0,0.00020548,2]
[421741782,1778088642000,-151.0,0.00020548,2]
[421741751,1778088642000,-500.0,0.00020548,2]
[421741753,1778088642000,-500.0,0.00020548,2]
[421741754,1778088642000,-500.0,0.00020548,2]
[421741757,1778088642000,-500.0,0.00020548,2]
[421741762,1778088642000,-500.0,0.00020548,2]
[421741759,1778088642000,-500.0,0.00020548,2]
[421741761,1778088642000,-500.0,0.00020548,2]
[421741755,1778088642000,-500.0,0.00020548,2]
[421741760,1778088642000,-500.0,0.00020548,2]
[421741758,1778088642000,-500.0,0.00020548,2]
[421741756,1778088642000,-500.0,0.00020548,2]
[421741766,1778088642000,-500.0,0.00020548,2]
[421741764,1778088642000,-500.0,0.00020548,2]
[421741767,1778088642000,-500.0,0.00020548,2]
[421741768,1778088642000,-500.0,0.00020548,2]
[421741775,1778088642000,-245.059621,0.00020548,2]
[421741770,1778088642000,-151.0,0.00020548,2]
[421741763,1778088642000,-500.0,0.00020548,2]
[421741769,1778088642000,-151.0,0.00020548,2]
[421741765,1778088642000,-500.0,0.00020548,2]
[421741772,1778088642000,-500.0,0.00020548,2]
[421741771,1778088642000,-500.0,0.00020548,2]
[421741820,1778088643000,-500.0,0.00021362,2]
[421741818,1778088643000,-500.0,0.00021121,2]
[421741823,1778088643000,-1903.68171823,0.000216,2]
[421741824,1778088643000,-151.0,0.000216,2]
[421741828,1778088643000,-5000.0,0.00021918,2]
[421741822,1778088643000,-151.0,0.000214,2]
[421741827,1778088643000,-500.0,0.00021917,2]
[421741830,1778088643000,-686.0,0.00022,2]
[421741826,1778088643000,-1903.68171823,0.000218,2]
[421741829,1778088643000,-1000.0,0.00021918,5]
[421741832,1778088643000,-158.0,0.00022,2]
[421741833,1778088643000,-320.0,0.00022,2]
[421741821,1778088643000,-1903.68171823,0.000214,2]
[421741834,1778088643000,-811.0,0.00022,2]
[421741825,1778088643000,-5529.0,0.000216,3]
[421741819,1778088643000,-1903.68171823,0.000212,2]
[421741810,1778088643000,-811.0,0.00021,2]
[421741817,1778088643000,-1000.0,0.00021121,2]
[421741831,1778088643000,-295.0,0.00022,2]
[421741801,1778088643000,-160.0,0.00020949,2]
[421741802,1778088643000,-214.60306816,0.00020949,2]
[421741803,1778088643000,-168.84,0.00020963,2]
[421741804,1778088643000,-373.10108087,0.00020966,2]
[421741805,1778088643000,-3405.9346522,0.00021,7]
[421741809,1778088643000,-320.0,0.00021,2]
[421741807,1778088643000,-295.0,0.00021,2]
[421741806,1778088643000,-686.0,0.00021,2]
[421741808,1778088643000,-158.0,0.00021,2]
[421741811,1778088643000,-304.0,0.00021,2]
[421741813,1778088643000,-44411.0,0.00021,2]
[421741812,1778088643000,-273.0,0.00021,2]
[421741814,1778088643000,-500.0,0.00021055,2]
[421741815,1778088643000,-500.0,0.00021121,2]
[421741816,1778088643000,-500.0,0.00021121,2]
[421741835,1778088643000,-304.0,0.00022,2]
[421741842,1778088643000,-166.15,0.00022515,2]
[421741838,1778088643000,-500.0,0.00022003,2]
[421741859,1778088643000,-1000.0,0.00023288,15]
[421741860,1778088643000,-500.0,0.00023343,2]
[421741858,1778088643000,-252.42920329,0.0002327,2]
[421741857,1778088643000,-615.07440476,0.00023167,2]
[421741862,1778088643000,-1050.0,0.00023646,30]
[421741865,1778088643000,-686.0,0.00024,2]
[421741864,1778088643000,-407.24,0.00023845,2]
[421741863,1778088643000,-10043.11094307,0.000238,2]
[421741869,1778088643000,-304.0,0.00024,2]
[421741866,1778088643000,-295.0,0.00024,2]
[421741867,1778088643000,-320.0,0.00024,2]
[421741868,1778088643000,-811.0,0.00024,2]
[421741870,1778088643000,-273.0,0.00024,2]
[421741836,1778088643000,-273.0,0.00022,2]
[421741872,1778088643000,-1268.0,0.00024038,2]
[421741856,1778088643000,-250.0,0.00023012,2]
[421741861,1778088643000,-2550.0,0.00023646,2]
[421741871,1778088643000,-500.0,0.00024,2]
[421741855,1778088643000,-273.0,0.00023,2]
[421741854,1778088643000,-304.0,0.00023,2]
[421741837,1778088643000,-450.0,0.00022,2]
[421741839,1778088643000,-5529.0,0.000223,5]
[421741843,1778088643000,-500.0,0.00022663,2]
[421741844,1778088643000,-1518.19,0.00022691,2]
[421741841,1778088643000,-1412.32,0.00022466,2]
[421741846,1778088643000,-204.0,0.00022748,2]
[421741840,1778088643000,-1937.4,0.00022353,2]
[421741847,1778088643000,-14055.02043896,0.00022793,2]
[421741848,1778088643000,-667.79457908,0.00023,2]
[421741851,1778088643000,-168.04006807,0.00023,2]
[421741849,1778088643000,-686.0,0.00023,2]
[421741850,1778088643000,-295.0,0.00023,2]
[421741853,1778088643000,-811.0,0.00023,2]
[421741852,1778088643000,-320.0,0.00023,2]
[421741845,1778088643000,-11111.73,0.00022691,2]
[421741891,1778088644000,-151.0,0.00024658,2]
[421741892,1778088644000,-151.0,0.00024658,2]
[421741894,1778088644000,-1000.0,0.00024658,2]
[421741895,1778088644000,-169.05,0.00024658,2]
[421741896,1778088644000,-154.89,0.00024658,2]
[421741901,1778088644000,-154.23,0.00024774,2]
[421741900,1778088644000,-154.23,0.00024774,2]
[421741902,1778088644000,-154.22,0.00024774,2]
[421741898,1778088644000,-502.92924954,0.00024764,2]
[421741897,1778088644000,-155.13,0.00024658,2]
[421741904,1778088644000,-242.28,0.000248,2]
[421741903,1778088644000,-242.27,0.00024799,2]
[421741905,1778088644000,-154.23,0.0002486,2]
[421741899,1778088644000,-154.23,0.00024774,2]
[421741889,1778088644000,-464.07,0.00024658,2]
[421741884,1778088644000,-500.0,0.00024657,2]
[421741888,1778088644000,-150.0,0.00024658,2]
[421741906,1778088644000,-301.94273924,0.00024921,2]
[421741875,1778088644000,-1352.0,0.00024038,2]
[421741876,1778088644000,-500.0,0.00024043,2]
[421741874,1778088644000,-624.0,0.00024038,2]
[421741873,1778088644000,-1221.0,0.00024038,2]
[421741878,1778088644000,-1937.4,0.00024324,2]
[421741877,1778088644000,-1832.93,0.00024174,2]
[421741885,1778088644000,-500.0,0.00024657,2]
[421741880,1778088644000,-150.0,0.00024409,2]
[421741879,1778088644000,-150.0,0.00024373,2]
[421741882,1778088644000,-500.0,0.00024657,2]
[421741881,1778088644000,-500.0,0.00024657,2]
[421741883,1778088644000,-500.0,0.00024657,2]
[421741887,1778088644000,-1000.0,0.00024658,25]
[421741886,1778088644000,-270.5538867,0.00024657,2]
[421741890,1778088644000,-151.0,0.00024658,2]
[421741907,1778088644000,-334.16,0.00024931,2]
[421741893,1778088644000,-151.0,0.00024658,2]
[421741910,1778088644000,-313.0,0.00025,2]
[421741931,1778088644000,-204.71,0.00025709,2]
[421741932,1778088644000,-250.0,0.00025709,2]
[421741930,1778088644000,-4113.08830698,0.000257,2]
[421741929,1778088644000,-155.13,0.00025685,2]
[421741933,1778088644000,-194.343,0.00025709,2]
[421741935,1778088644000,-150.098,0.00025709,2]
[421741934,1778088644000,-150.0,0.00025709,2]
[421741937,1778088644000,-350.0,0.00025753,2]
[421741936,1778088644000,-151.0,0.00025709,2]
[421741938,1778088644000,-1832.93,0.00025786,2]
[421741939,1778088644000,-206.39,0.00025807,2]
[421741940,1778088644000,-550.0,0.00026,2]
[421741942,1778088644000,-1937.4,0.00026296,2]
[421741943,1778088644000,-450.0,0.00026301,2]
[421741908,1778088644000,-222.78,0.00024931,2]
[421741928,1778088644000,-154.89,0.00025685,2]
[421741927,1778088644000,-14055.02043896,0.00025529,2]
[421741941,1778088644000,-1000.0,0.00026027,35]
[421741926,1778088644000,-5041.77364479,0.000255,2]
[421741909,1778088644000,-687.65239951,0.00025,2]
[421741923,1778088644000,-150.0,0.00025207,2]
[421741911,1778088644000,-326.0,0.00025,2]
[421741913,1778088644000,-308.07624584,0.00025,2]
[421741912,1778088644000,-815.01454641,0.00025,2]
[421741914,1778088644000,-154.89,0.00025,7]
[421741917,1778088644000,-167.20875865,0.00025017,2]
[421741916,1778088644000,-287.25459908,0.00025,2]
[421741915,1778088644000,-155.13,0.00025,7]
[421741918,1778088644000,-250.0,0.00025205,2]
[421741919,1778088644000,-150.0,0.00025207,2]
[421741921,1778088644000,-150.0,0.00025207,2]
[421741920,1778088644000,-186.8185904,0.00025207,2]
[421741925,1778088644000,-155.13,0.00025342,30]
[421741924,1778088644000,-154.89,0.00025342,30]
[421741922,1778088644000,-150.0,0.00025207,2]
[421741973,1778088645000,-999.0,0.0002724,2]
[421741966,1778088645000,-1300.0,0.0002724,2]
[421741968,1778088645000,-1300.0,0.0002724,2]
[421741971,1778088645000,-1300.0,0.0002724,2]
[421741969,1778088645000,-1300.0,0.0002724,2]
[421741974,1778088645000,-615.07440476,0.0002735,2]
[421741967,1778088645000,-1300.0,0.0002724,2]
[421741979,1778088645000,-500.0,0.00027397,2]
[421741984,1778088645000,-1500.0,0.00027397,2]
[421741977,1778088645000,-500.0,0.00027397,2]
[421741978,1778088645000,-500.0,0.00027397,2]
[421741976,1778088645000,-500.0,0.00027397,2]
[421741980,1778088645000,-500.0,0.00027397,2]
[421741982,1778088645000,-221.65227949,0.00027397,2]
[421741983,1778088645000,-253.85449955,0.00027397,2]
[421741990,1778088645000,-151.0,0.00027397,2]
[421741986,1778088645000,-151.0,0.00027397,2]
[421741970,1778088645000,-1300.0,0.0002724,2]
[421741975,1778088645000,-151.0,0.00027397,2]
[421741965,1778088645000,-1775.0,0.0002724,2]
[421741947,1778088645000,-500.0,0.00027037,2]
[421741962,1778088645000,-248.0,0.00027132,2]
[421741944,1778088645000,-27803.44682688,0.000264,2]
[421741945,1778088645000,-480.85466589,0.00026627,2]
[421741946,1778088645000,-303.45901732,0.00026849,2]
[421741948,1778088645000,-1268.0,0.00027038,2]
[421741985,1778088645000,-200.0,0.00027397,2]
[421741949,1778088645000,-1221.0,0.00027038,2]
[421741950,1778088645000,-624.0,0.00027038,2]
[421741951,1778088645000,-1352.0,0.00027038,2]
[421741952,1778088645000,-324.0,0.00027123,2]
[421741953,1778088645000,-174.0,0.00027123,2]
[421741956,1778088645000,-700.0,0.00027132,2]
[421741954,1778088645000,-700.0,0.00027132,2]
[421741955,1778088645000,-700.0,0.00027132,2]
[421741957,1778088645000,-700.0,0.00027132,2]
[421741959,1778088645000,-700.0,0.00027132,2]
[421741958,1778088645000,-700.0,0.00027132,2]
[421741960,1778088645000,-700.0,0.00027132,2]
[421741961,1778088645000,-700.0,0.00027132,2]
[421741963,1778088645000,-4628.0160973,0.0002716,2]
[421741964,1778088645000,-2000.0,0.0002724,2]
[421741989,1778088645000,-300.0,0.00027397,2]
[421741972,1778088645000,-1300.0,0.0002724,2]
[421741981,1778088645000,-500.0,0.00027397,2]
[421742014,1778088645000,-400.0,0.00027705,2]
[421742012,1778088645000,-400.0,0.00027705,2]
[421741988,1778088645000,-464.07,0.00027397,2]
[421742016,1778088645000,-400.0,0.00027705,2]
[421742018,1778088645000,-400.0,0.00027705,2]
[421742017,1778088645000,-400.0,0.00027705,2]
[421742019,1778088645000,-400.0,0.00027705,2]
[421742020,1778088645000,-400.0,0.00027705,2]
[421742025,1778088645000,-151.0,0.00027705,7]
[421742029,1778088645000,-518.58739321,0.0002772,5]
[421742023,1778088645000,-151.0,0.00027705,7]
[421742026,1778088645000,-151.0,0.00027705,7]
[421742028,1778088645000,-151.0,0.00027705,7]
[421742027,1778088645000,-151.0,0.00027705,7]
[421742030,1778088645000,-600.0,0.00027754,2]
[421742021,1778088645000,-394.0,0.00027705,2]
[421742024,1778088645000,-151.0,0.00027705,7]
[421742031,1778088645000,-600.0,0.00027754,2]
[421742032,1778088645000,-600.0,0.00027754,2]
[421742013,1778088645000,-400.0,0.00027705,2]
[421742011,1778088645000,-151.0,0.000274,7]
[421742015,1778088645000,-400.0,0.00027705,2]
[421742005,1778088645000,-151.0,0.000274,7]
[421741987,1778088645000,-246.893634,0.00027397,2]
[421741992,1778088645000,-252.69195086,0.00027397,2]
[421741991,1778088645000,-151.0,0.00027397,2]
[421741994,1778088645000,-307.51407,0.00027397,2]
[421741998,1778088645000,-151.0,0.00027397,2]
[421742008,1778088645000,-336.255181,0.000274,7]
[421741995,1778088645000,-307.51407,0.00027397,2]
[421741996,1778088645000,-307.51407,0.00027397,2]
[421741993,1778088645000,-307.51407,0.00027397,2]
[421741997,1778088645000,-8043.74,0.00027397,10]
[421742001,1778088645000,-181.83,0.000274,7]
[421742000,1778088645000,-567.93,0.00027397,45]
[421742010,1778088645000,-336.255181,0.000274,7]
[421742002,1778088645000,-24846.38,0.000274,7]
[421742003,1778088645000,-160.0,0.000274,10]
[421742007,1778088645000,-336.255181,0.000274,7]
[421742004,1778088645000,-151.0,0.000274,7]
[421742006,1778088645000,-151.0,0.000274,7]
[421742009,1778088645000,-336.255181,0.000274,7]
[421741999,1778088645000,-12558.95,0.00027397,10]
[421742039,1778088646000,-506.0,0.00027754,2]
[421742037,1778088646000,-600.0,0.00027754,2]
[421742040,1778088646000,-156.48951136,0.00027794,2]
[421742033,1778088646000,-600.0,0.00027754,2]
[421742034,1778088646000,-600.0,0.00027754,2]
[421742036,1778088646000,-600.0,0.00027754,2]
[421742035,1778088646000,-600.0,0.00027754,2]
[421742038,1778088646000,-600.0,0.00027754,2]
[421742041,1778088646000,-1500.0,0.000278,7]
[421742042,1778088646000,-224.66,0.0002787,2]
[421742043,1778088646000,-224.67,0.00027872,2]
[421742049,1778088646000,-813.95610583,0.00028,2]
[421742048,1778088646000,-1081.66936436,0.00028,2]
[421742047,1778088646000,-2483.090551,0.00028,2]
[421742046,1778088646000,-694.0,0.00028,5]
[421742050,1778088646000,-104.37452981,0.00028,2]
[421742045,1778088646000,-868.0,0.00028,5]
[421742052,1778088646000,-42.00729952,0.00028,7]
[421742051,1778088646000,-261.16817067,0.00028,2]
[421742044,1778088646000,-153.55693177,0.00027999,20]
[421742095,1778088647000,-2562.227663,0.0002801,2]
[421742090,1778088647000,-193.05,0.00028,2]
[421742092,1778088647000,-600.0,0.00028,2]
[421742076,1778088647000,-151.0,0.00028,7]
[421742089,1778088647000,-193.05,0.00028,2]
[421742087,1778088647000,-193.05,0.00028,2]
[421742098,1778088647000,-1400.0,0.00028089,2]
[421742088,1778088647000,-193.05,0.00028,2]
[421742097,1778088647000,-1400.0,0.00028089,2]
[421742096,1778088647000,-1400.0,0.00028089,2]
[421742093,1778088647000,-281.794868,0.00028,2]
[421742094,1778088647000,-10000.0,0.00028,30]
[421742085,1778088647000,-193.05,0.00028,2]
[421742099,1778088647000,-1400.0,0.00028089,2]
[421742100,1778088647000,-1400.0,0.00028089,2]
[421742109,1778088647000,-14055.02043896,0.00028265,2]
[421742108,1778088647000,-4053.0,0.00028205,10]
[421742102,1778088647000,-1400.0,0.00028089,2]
[421742103,1778088647000,-1400.0,0.00028089,2]
[421742091,1778088647000,-214.60306816,0.00028,10]
[421742082,1778088647000,-151.0,0.00028,7]
[421742084,1778088647000,-193.05,0.00028,2]
[421742078,1778088647000,-200.0,0.00028,10]
[421742101,1778088647000,-1400.0,0.00028089,2]
[421742054,1778088647000,-151.0,0.00020548,2]
[421742053,1778088647000,-151.0,0.00020548,2]
[421742055,1778088647000,-151.0,0.00020548,2]
[421742057,1778088647000,-151.0,0.00020548,2]
[421742060,1778088647000,-151.0,0.00020548,2]
[421742067,1778088647000,-506.0,0.00027137,2]
[421742056,1778088647000,-151.0,0.00020548,2]
[421742062,1778088647000,-151.0,0.00020548,2]
[421742086,1778088647000,-193.05,0.00028,2]
[421742065,1778088647000,-6043.0,0.00021334,2]
[421742059,1778088647000,-151.0,0.00020548,2]
[421742061,1778088647000,-151.0,0.00020548,2]
[421742058,1778088647000,-151.0,0.00020548,2]
[421742064,1778088647000,-151.0,0.00020548,2]
[421742068,1778088647000,-6043.0,0.00027334,2]
[421742072,1778088647000,-151.0,0.00028,7]
[421742070,1778088647000,-172.59576864,0.00028,7]
[421742074,1778088647000,-151.0,0.00028,7]
[421742080,1778088647000,-160.0,0.00028,35]
[421742063,1778088647000,-151.0,0.00020548,2]
[421742107,1778088647000,-498.0,0.00028161,10]
[421742066,1778088647000,-6043.0,0.00024334,2]
[421742105,1778088647000,-1358.0,0.00028089,2]
[421742133,1778088647000,-150.0,0.00028709,2]
[421742135,1778088647000,-359.4679174,0.00028738,2]
[421742131,1778088647000,-181.83,0.000287,7]
[421742136,1778088647000,-159.59,0.0002875,30]
[421742139,1778088647000,-159.84,0.0002881,2]
[421742140,1778088647000,-4053.0,0.0002882,10]
[421742138,1778088647000,-159.59,0.0002881,2]
[421742137,1778088647000,-159.84,0.0002875,30]
[421742141,1778088647000,-159.59,0.00028871,7]
[421742132,1778088647000,-150.0,0.00028709,2]
[421742147,1778088647000,-159.59,0.00028991,2]
[421742150,1778088647000,-160.0,0.00029,30]
[421742152,1778088647000,-214.60306816,0.00029,7]
[421742143,1778088647000,-501.0,0.00028904,2]
[421742146,1778088647000,-159.84,0.00028931,30]
[421742149,1778088647000,-2473.43551206,0.00029,4]
[421742145,1778088647000,-159.59,0.00028931,30]
[421742144,1778088647000,-335.0,0.00028904,2]
[421742148,1778088647000,-159.84,0.00028991,2]
[421742104,1778088647000,-1400.0,0.00028089,2]
[421742151,1778088647000,-214.60306816,0.00029,30]
[421742134,1778088647000,-150.0,0.00028709,2]
[421742142,1778088647000,-159.84,0.00028871,7]
[421742123,1778088647000,-163.0,0.00028371,3]
[421742130,1778088647000,-159.84,0.0002869,7]
[421742106,1778088647000,-300.0,0.000281,10]
[421742111,1778088647000,-151.0,0.00028267,7]
[421742110,1778088647000,-1937.4,0.00028267,2]
[421742112,1778088647000,-307.51407,0.00028267,7]
[421742113,1778088647000,-307.51407,0.00028267,7]
[421742116,1778088647000,-150.0,0.00028321,2]
[421742114,1778088647000,-307.51407,0.00028267,7]
[421742117,1778088647000,-150.0,0.00028321,2]
[421742119,1778088647000,-150.0,0.00028321,2]
[421742115,1778088647000,-307.51407,0.00028267,7]
[421742126,1778088647000,-350.0,0.00028418,4]
[421742127,1778088647000,-506.0,0.00028426,3]
[421742118,1778088647000,-150.0,0.00028321,2]
[421742129,1778088647000,-159.84,0.0002863,2]
[421742128,1778088647000,-4053.0,0.00028615,10]
[421742121,1778088647000,-150.0,0.00028321,2]
[421742124,1778088647000,-24846.38,0.000284,7]
[421742120,1778088647000,-150.0,0.00028321,2]
[421742122,1778088647000,-150.0,0.00028321,2]
[421742125,1778088647000,-4053.0,0.0002841,10]
[421742194,1778088648000,-323.46322501,0.0003,2]
[421742193,1778088648000,-192.90505518,0.0003,10]
[421742186,1778088648000,-506.0,0.00029716,4]
[421742185,1778088648000,-4053.0,0.0002964,10]
[421742183,1778088648000,-350.0,0.00029543,3]
[421742176,1778088648000,-1044.01703764,0.00029266,5]
[421742182,1778088648000,-150.0,0.00029534,2]
[421742178,1778088648000,-150.0,0.00029352,2]
[421742188,1778088648000,-47518.88416055,0.000299,2]
[421742184,1778088648000,-181.83,0.000296,7]
[421742189,1778088648000,-240.31016824,0.0002999,2]
[421742200,1778088648000,-24846.38,0.0003,7]
[421742190,1778088648000,-500.0,0.00029999,2]
[421742192,1778088648000,-20133.34531172,0.0003,2]
[421742191,1778088648000,-8000.0,0.0003,3]
[421742196,1778088648000,-165.18283329,0.0003,2]
[421742197,1778088648000,-310.69232647,0.0003,2]
[421742198,1778088648000,-176756.29886975,0.0003,60]
[421742202,1778088648000,-1043.45,0.0003,30]
[421742203,1778088648000,-151.0,0.0003,7]
[421742195,1778088648000,-1841.84846317,0.0003,2]
[421742199,1778088648000,-708.13425039,0.0003,5]
[421742177,1778088648000,-1208.43784804,0.00029266,5]
[421742187,1778088648000,-4053.0,0.00029845,10]
[421742179,1778088648000,-4053.0,0.00029435,10]
[421742159,1778088648000,-159.84,0.00029112,30]
[421742180,1778088648000,-150.0,0.00029452,30]
[421742153,1778088648000,-160.0,0.00029,38]
[421742158,1778088648000,-159.59,0.00029112,30]
[421742205,1778088648000,-151.0,0.0003,7]
[421742156,1778088648000,-159.59,0.00029052,7]
[421742154,1778088648000,-214.60306816,0.00029,10]
[421742161,1778088648000,-159.84,0.00029172,2]
[421742155,1778088648000,-4053.0,0.00029025,10]
[421742157,1778088648000,-159.84,0.00029052,7]
[421742162,1778088648000,-24846.38,0.000292,7]
[421742160,1778088648000,-159.59,0.00029172,2]
[421742163,1778088648000,-4053.0,0.0002923,10]
[421742165,1778088648000,-159.84,0.00029232,7]
[421742168,1778088648000,-1041.97677224,0.00029266,5]
[421742167,1778088648000,-1028.83468006,0.00029266,5]
[421742166,1778088648000,-500.0,0.00029265,2]
[421742164,1778088648000,-159.59,0.00029232,7]
[421742169,1778088648000,-1125.21237868,0.00029266,5]
[421742174,1778088648000,-1108.64119227,0.00029266,5]
[421742170,1778088648000,-1082.79939511,0.00029266,5]
[421742173,1778088648000,-1008.10742873,0.00029266,5]
[421742172,1778088648000,-1043.72258556,0.00029266,5]
[421742171,1778088648000,-1016.33631649,0.00029266,5]
[421742175,1778088648000,-1105.01734214,0.00029266,5]
[421742181,1778088648000,-5658.93119716,0.00029452,30]
[421742204,1778088648000,-151.0,0.0003,7]
[421742201,1778088648000,-214.60306816,0.0003,7]
[421742216,1778088648000,-151.0,0.0003,7]
[421742231,1778088648000,-1043.45,0.00030008,30]
[421742236,1778088648000,-1043.45,0.00030029,30]
[421742238,1778088648000,-1043.45,0.00030037,30]
[421742239,1778088648000,-2000.0,0.00030037,7]
[421742249,1778088648000,-1043.45,0.00030041,30]
[421742240,1778088648000,-2000.0,0.00030037,7]
[421742242,1778088648000,-2000.0,0.00030037,7]
[421742241,1778088648000,-2000.0,0.00030037,7]
[421742244,1778088648000,-2000.0,0.00030037,7]
[421742243,1778088648000,-2000.0,0.00030037,7]
[421742247,1778088648000,-624.0,0.00030038,2]
[421742232,1778088648000,-1043.45,0.00030012,30]
[421742248,1778088648000,-1352.0,0.00030038,2]
[421742245,1778088648000,-1268.0,0.00030038,2]
[421742250,1778088648000,-1043.45,0.00030045,30]
[421742253,1778088648000,-1043.45,0.00030053,30]
[421742252,1778088648000,-4053.0,0.0003005,10]
[421742251,1778088648000,-1043.45,0.00030049,30]
[421742259,1778088648000,-1043.45,0.00030078,30]
[421742254,1778088648000,-1043.45,0.00030057,30]
[421742257,1778088648000,-1043.45,0.00030069,30]
[421742258,1778088648000,-1043.45,0.00030073,30]
[421742256,1778088648000,-1043.45,0.00030065,30]
[421742207,1778088648000,-151.0,0.0003,7]
[421742246,1778088648000,-1221.0,0.00030038,2]
[421742233,1778088648000,-1043.45,0.00030016,30]
[421742255,1778088648000,-1043.45,0.00030061,30]
[421742234,1778088648000,-1043.45,0.0003002,30]
[421742237,1778088648000,-1043.45,0.00030033,30]
[421742210,1778088648000,-151.0,0.0003,7]
[421742215,1778088648000,-200.0,0.0003,2]
[421742208,1778088648000,-200.0,0.0003,2]
[421742214,1778088648000,-200.0,0.0003,2]
[421742209,1778088648000,-151.0,0.0003,7]
[421742211,1778088648000,-151.0,0.0003,7]
[421742212,1778088648000,-151.0,0.0003,7]
[421742213,1778088648000,-160.0,0.0003,41]
[421742217,1778088648000,-307.51407,0.0003,7]
[421742221,1778088648000,-151.0,0.0003,7]
[421742220,1778088648000,-307.51407,0.0003,7]
[421742206,1778088648000,-151.0,0.0003,7]
[421742223,1778088648000,-307.51407,0.0003,7]
[421742218,1778088648000,-151.0,0.0003,7]
[421742222,1778088648000,-307.51407,0.0003,7]
[421742224,1778088648000,-336.255181,0.0003,7]
[421742225,1778088648000,-336.255181,0.0003,7]
[421742226,1778088648000,-336.255181,0.0003,7]
[421742227,1778088648000,-336.255181,0.0003,7]
[421742228,1778088648000,-214.60306816,0.0003,3]
[421742229,1778088648000,-200.0,0.0003,2]
[421742230,1778088648000,-1043.45,0.00030004,30]
[421742235,1778088648000,-1043.45,0.00030024,30]
[421742219,1778088648000,-200.0,0.0003,2]
[421742294,1778088649000,-1043.45,0.00030151,30]
[421742296,1778088649000,-1043.45,0.00030159,30]
[421742290,1778088649000,-150.0,0.00030137,30]
[421742288,1778088649000,-165.24,0.00030137,2]
[421742293,1778088649000,-1043.45,0.00030147,30]
[421742295,1778088649000,-1043.45,0.00030155,30]
[421742291,1778088649000,-1043.45,0.00030139,30]
[421742297,1778088649000,-1043.45,0.00030163,30]
[421742287,1778088649000,-2829.46559858,0.00030137,30]
[421742292,1778088649000,-1043.45,0.00030143,30]
[421742299,1778088649000,-1043.45,0.00030171,30]
[421742303,1778088649000,-1043.45,0.00030188,30]
[421742300,1778088649000,-1043.45,0.00030176,30]
[421742304,1778088649000,-1043.45,0.00030192,30]
[421742301,1778088649000,-1043.45,0.0003018,30]
[421742302,1778088649000,-1043.45,0.00030184,30]
[421742306,1778088649000,-500.0,0.00030195,2]
[421742307,1778088649000,-1043.45,0.00030196,30]